Cogmind - Beta 11.1 @@@ ROGUE MODE // 2022.09.05 @ 01:29:17 Player: Okkudo Result: Destroyed by D-53 Grenadier with Mini Grenade Launcher Performance ------------- Evolutions (1) 500 Regions Visited (4) 800 Robots Destroyed (42) 210 Value Destroyed (826) 826 Prototype IDs (2) 40 Alien Tech Used (0) 0 Bonus (4) 4 TOTAL SCORE: 2380 Bonus ------- High Alert Combat Kills 4 Cogmind --------- Core Integrity 0/400 Matter 450/450 Energy 99/100 System Corruption 0% Temperature Cool (0) Movement Core (300) Ox5 Location -9/Mines Parts ------- > --- POWER (1) -------- (None) > --- PROPULSION (2) --- (None) > --- UTILITY (4) ------ Medium Storage Unit Large Matter Pod Propulsion Shielding > --- WEAPON (2) ------- Axe > --- INVENTORY (10) --- Light Ion Engine Experimental Sensor Array Melee Analysis Suite Hacking Suite Light Assault Rifle Datajack Axe Peak State ------------ > --- POWER ------------ Light Angular Momentum Engine > --- PROPULSION ------- Aluminum Leg Carbon-fiber Leg > --- UTILITY ---------- Small Storage Unit Large Matter Pod Terrain Scanner Light Armor Plating > --- WEAPON ----------- Minigun Minigun > --- INVENTORY -------- Light Ion Engine Improved Heat Sink Experimental Sensor Array Melee Analysis Suite Propulsion Shielding Hacking Suite Small Laser [Rating: 21] Favorites ----------- Power Light Ion Engine Engine Light Ion Engine Propulsion Aluminum Leg Leg Aluminum Leg Utility Terrain Scanner Device Terrain Scanner Storage Small Storage Unit Protection Light Armor Plating Weapon Light Assault Rifle Energy Gun Small Laser Ballistic Gun Light Assault Rifle Slashing Weapon Axe Build | -11 -10 -10 -9 -9 ------- Run | Scr Mat Min Mat Min Slots Evolved 2 | . . . 2 . Power . | . . . . . Propulsion . | . . . . . Utility 2 | . . . 2 . Weapon . | . . . . . Parts Attached 31 | 3 5 10 12 1 Power 4 | 1 . 3 . . Engine 4 | 1 . 3 . . Core . | . . . . . Reactor . | . . . . . Propulsion 7 | 1 1 2 2 1 Treads . | . . . . . Leg 7 | 1 1 2 2 1 Wheel . | . . . . . Hover . | . . . . . Flight . | . . . . . Utility 10 | . 3 3 4 . Device 4 | . 1 3 . . Storage 3 | . 1 . 2 . Processor . | . . . . . Hackware . | . . . . . Protection 3 | . 1 . 2 . Artifact . | . . . . . Weapon 10 | 1 1 2 6 . Energy Gun 3 | . 1 . 2 . Energy Cannon . | . . . . . Ballistic Gun 6 | 1 . 2 3 . Ballistic Cannon . | . . . . . Launcher . | . . . . . Special Weapon . | . . . . . Impact Weapon . | . . . . . Slashing Weapon 1 | . . . 1 . Piercing Weapon . | . . . . . Special Melee Weapon . | . . . . . Unidentified Prototypes 2 | . . 1 1 . Parts Lost 11 | . . 1 8 2 Power 1 | . . . 1 . Propulsion 4 | . . . 3 1 Utility 3 | . . 1 2 . Weapon 3 | . . . 2 1 Highest Loss Streak 4 | . . 1 4 2 To Critical Strikes . | . . . . . Average Slot Usage (%) 94 | . 82 99 89 63 Engine 11 | . 14 14 7 . Leg 24 | . 28 28 20 11 Device 10 | . . 13 8 . Storage 17 | . 12 14 22 22 Protection 3 | . . . 9 11 Energy Gun 2 | . 12 2 2 . Ballistic Gun 21 | . 14 25 17 8 Naked Turns . | . . . . . Heaviest Build 32 | 6 15 17 32 20 Greatest Support 25 | 10 20 25 25 10 Greatest Overweight (x) 6 | . . . 6 5 Average Overweight (x) . | . . . . 1 Largest Inventory Capacity 10 | 5 8 8 10 10 Average Capacity 8 | 5 7 8 9 10 Most Carried 10 | 5 7 8 10 7 Average Carried 6 | 4 3 6 8 7 Final Capacity 10 | 5 8 8 10 10 Final Carried 8 | 5 6 8 8 7 Class Distribution -------------------- 90% | Mutant 9% | Scavenger-Mutant Dominant Class ---------------- Mutant | -10/Materials Mutant | -10/Mines Mutant | -9/Materials Mutant | -9/Mines Resources | -11 -10 -10 -9 -9 ----------- Run | Scr Mat Min Mat Min Matter Collected 955 | 209 . 344 402 . Remotely . | . . . . . Salvage Created 1099 | . . 422 677 . Parts 89 | . . 31 58 . Haulers Intercepted . | . . . . . Recyclers Shooed . | . . . . . Parts Field Recycled . | . . . . . Retrieved Matter . | . . . . . Parts Self-Destructed . | . . . . . Prevented . | . . . . . Kills | -11 -10 -10 -9 -9 ------- Run | Scr Mat Min Mat Min Combat Hostiles Destroyed 37 | . . 13 24 . Guns 36 | . . 13 23 . AOE 1 | . . . 1 . Classes Destroyed 7 | . . 4 3 . Builder 1 | . . . 1 . Recycler 1 | . . 1 . . Operator 3 | . . . 3 . Swarmer 22 | . . 9 13 . Grunt 13 | . . 3 10 . Duelist 1 | . . . 1 . Sentry 1 | . . 1 . . Best Kill Streak 11 | . . 4 11 . Combat Bots Only 7 | . . 3 7 . Max Kills in Single Turn 2 | . . 1 2 . Gunslinging . | . . . . . Exploded 1 | . . . 1 . Melee . | . . . . . Uniques/NPCs Destroyed . | . . . . . Combat | -11 -10 -10 -9 -9 -------- Run | Scr Mat Min Mat Min Damage Taken 1872 | . . 478 1071 323 Core 480 | . . 65 211 204 Absorbed by Shields . | . . . . . Redirected to Shielding 32 | . . . 11 21 Core Remaining (%) 87 | 100 . 74 . . Volleys Fired 97 | . . 36 61 . Largest 2 | . . 2 2 . Hottest 65 | . . 60 65 . Shots Fired 172 | . . 72 100 . Gun 172 | . . 72 100 . Cannon . | . . . . . Launcher . | . . . . . Special . | . . . . . Kinetic 140 | . . 54 86 . Thermal 23 | . . 18 5 . Explosive . | . . . . . Electromagnetic 9 | . . . 9 . Robot Hit Streak 9 | . . 9 9 . Robot Miss Streak 4 | . . 3 4 . Penetration Max . | . . . . . Secondary Targets 8 | . . 3 5 . Max Gunslinging Chain 1 | . . 1 1 . Shots Hit Robots 104 | . . 44 60 . Core Hits 56 | . . 24 32 . Critical Kills . | . . . . . Critical Parts Destroyed . | . . . . . Critical Strikes . | . . . . . Melee Attacks 4 | . . . 4 . Impact . | . . . . . Slashing 4 | . . . 4 . Piercing . | . . . . . Sneak Attacks 1 | . . . 1 . Combat Hostiles . | . . . . . Follow-up Attacks . | . . . . . Damage Inflicted 1685 | . . 470 1215 . Guns 1443 | . . 452 991 . Cannons . | . . . . . Explosions 97 | . . . 97 . Melee 116 | . . . 116 . Ramming 29 | . . 18 11 . Kinetic 1104 | . . 282 822 . Thermal 300 | . . 170 130 . Explosive . | . . . . . Electromagnetic 136 | . . . 136 . Impact . | . . . . . Slashing 116 | . . . 116 . Piercing . | . . . . . Highest Corruption . | . . . . . Average Corruption . | . . . . . Corruption Purged . | . . . . . Corruption Blocked . | . . . . . Overload Shots . | . . . . . Overflow Damage 58 | . . . 58 . Projectiles . | . . . . . Explosions 5 | . . . 5 . Melee 53 | . . . 53 . Knockbacks . | . . . . . Impact . | . . . . . Kinetic . | . . . . . Secondary . | . . . . . Self-Inflicted Damage 47 | . . . 47 . Shots 1 | . . . 1 . Rammed . | . . . . . Targets Rammed 6 | . . 4 2 . Kicked 6 | . . 4 2 . Crushed . | . . . . . Highest Temperature 241 | . . 241 78 . Average Temperature 53 | . . 93 21 . Received Heat Transfer 315 | . . 135 180 . Effects 1 | . . 1 . . Interference 1 | . . 1 . . Siege Activations . | . . . . . Robots Corrupted . | . . . . . Combat Hostiles . | . . . . . Parts Fried . | . . . . . Impact Corruptions . | . . . . . Robots Melted . | . . . . . Combat Hostiles . | . . . . . Parts Melted 1 | . . 1 . . Heat Transferred 500 | . . 375 125 . Parts Sabotaged . | . . . . . Parts Stolen . | . . . . . Parts Stripped . | . . . . . Power Chain Reactions 1 | . . . 1 . Missiles Intercepted . | . . . . . Alert | -11 -10 -10 -9 -9 ------- Run | Scr Mat Min Mat Min Peak Influence 440 | . . 205 440 171 Initial 171 | . . . 11 171 Average 108 | . . 74 176 167 Maximum Alert Level 2 | . . 1 2 . Low Security (%) 78 | 100 100 89 55 100 Level 1 18 | . . 10 36 . Level 2 2 | . . . 7 . Level 3 . | . . . . . Level 4 . | . . . . . Level 5 . | . . . . . High Security . | . . . . . Max Security . | . . . . . Squads Dispatched 5 | . . 1 4 . Investigation 2 | . . 1 1 . Extermination . | . . . . . Reinforcement 3 | . . . 3 . Assault . | . . . . . Garrison . | . . . . . Intercept . | . . . . . Searches Triggered . | . . . . . Construction Impeded . | . . . . . Haulers Reinforced . | . . . . . Active Scanning Responses . | . . . . . Cargo Convoy Interrupts . | . . . . . Stealth | -11 -10 -10 -9 -9 --------- Run | Scr Mat Min Mat Min Distress Signals . | . . . . . Communications Jammed . | . . . . . Distress Signals . | . . . . . Times Spotted 47 | . . 13 32 2 Peak Tracking Total 9 | . . 3 9 2 Tactical Retreats 1 | . . . 1 . Traps | -11 -10 -10 -9 -9 ------- Run | Scr Mat Min Mat Min Traps Triggered 1 | . . . 1 . Indirectly . | . . . . . Trap Hack Attempts . | . . . . . Triggered . | . . . . . Disarmed . | . . . . . Reprogrammed . | . . . . . Reused . | . . . . . Traps Extracted . | . . . . . Installed . | . . . . . Triggered . | . . . . . Machines | -11 -10 -10 -9 -9 ---------- Run | Scr Mat Min Mat Min Machines Disabled . | . . . . . Max in Single Turn . | . . . . . Machines Sabotaged . | . . . . . Garrisons Compromised . | . . . . . Overloaded Fab Kills . | . . . . . Hacking | -11 -10 -10 -9 -9 --------- Run | Scr Mat Min Mat Min Machines Accessed 1 | . . 1 . . Terminals 1 | . . 1 . . Fabricators . | . . . . . Repair Stations . | . . . . . Recycling Units . | . . . . . Scanalyzers . | . . . . . Garrison Access . | . . . . . Total Hacks 4 | . . 4 . . Successful . | . . . . . Failed 4 | . . 4 . . Catastrophic 2 | . . 2 . . Database Lockouts . | . . . . . Manual 4 | . . 4 . . Terminals 4 | . . 4 . . Fabricators . | . . . . . Repair Stations . | . . . . . Recycling Units . | . . . . . Scanalyzers . | . . . . . Garrison Access . | . . . . . Terminal Hacks . | . . . . . Fabricator Hacks . | . . . . . Repair Station Hacks . | . . . . . Recycling Unit Hacks . | . . . . . Scanalyzer . | . . . . . Garrison Access Hacks . | . . . . . Unauthorized Hacks . | . . . . . Terminals . | . . . . . Fabricators . | . . . . . Repair Stations . | . . . . . Recycling Units . | . . . . . Scanalyzers . | . . . . . Garrison Access . | . . . . . Data Cores Recovered . | . . . . . Used . | . . . . . Hacking Detections 1 | . . 1 . . Full Trace Events 1 | . . 1 . . Feedback Events . | . . . . . Feedback Blocked . | . . . . . Robot Schematics Acquired . | . . . . . Robots Built . | . . . . . Authchips . | . . . . . Time . | . . . . . Total Robot Build Rating . | . . . . . Part Schematics Acquired . | . . . . . Parts Built . | . . . . . Authchips . | . . . . . Time . | . . . . . Total Part Build Rating . | . . . . . Parts Repaired . | . . . . . Time . | . . . . . Parts Recycled . | . . . . . Recycled Matter . | . . . . . Retrieved Matter . | . . . . . Retrieved Components . | . . . . . Parts Scanalyzed . | . . . . . Part Schematics Acquired . | . . . . . Parts Damaged . | . . . . . Bothacking | -11 -10 -10 -9 -9 ------------ Run | Scr Mat Min Mat Min Used RIF Installer . | . . . . . Robots Hacked . | . . . . . Non-combat . | . . . . . Combat . | . . . . . Robot Hacks Applied . | . . . . . Relay Couplers Released . | . . . . . Fabnet Peak Effective % . | . . . . . Robots Rewired . | . . . . . Allies Hacked . | . . . . . Hacks Repelled . | . . . . . Allies | -11 -10 -10 -9 -9 -------- Run | Scr Mat Min Mat Min Total Allies . | . . . . . Largest Group . | . . . . . Highest-Rated Group . | . . . . . Highest-Rated Ally . | . . . . . Total Orders . | . . . . . Ally Attacks . | . . . . . Total Damage . | . . . . . Kills . | . . . . . Allies Corrupted . | . . . . . Allies Melted . | . . . . . Intel | -11 -10 -10 -9 -9 ------- Run | Scr Mat Min Mat Min Robot Analysis Total . | . . . . . Derelict Logs Recovered 2 | . . 2 . . Drone Launches . | . . . . . Drone Recoveries . | . . . . . Exploration | -11 -10 -10 -9 -9 ------------- Run | Scr Mat Min Mat Min Turns Passed 2035 | 48 107 1092 747 41 Spaces Moved 1247 | 40 81 789 316 21 Core 20 | 14 . . 4 2 Treads . | . . . . . Legs 1227 | 26 81 789 312 19 Wheels . | . . . . . Hover . | . . . . . Flight . | . . . . . Fastest Speed 50 | 50 120 120 120 190 Average Speed 132 | 95 120 120 166 200 Slowest Speed 350 | 120 120 120 350 300 Overloaded Moves . | . . . . . Propulsion Burnouts . | . . . . . Robots Hopped . | . . . . . Cave-ins Triggered . | . . . . . Exploration Rate (%) 32 | 3 19 99 33 8 Regions Visited 4 Branch Regions 2 Pre-discovered Areas . | . . . . . Known Exits Taken 1 | . . . 1 . Unknown Exits Taken 3 | 1 1 1 . . Scrap Searched 1 | . . 1 . . Spaces Dug . | . . . . . Terrain Destroyed 2 | . . . 2 . Melee . | . . . . . Projectile . | . . . . . AOE 2 | . . . 2 . Terrain Rammed . | . . . . . Walls Destroyed . | . . . . . Machines Disabled . | . . . . . Actions | -11 -10 -10 -9 -9 --------- Run | Scr Mat Min Mat Min Total 1491 | 52 91 872 454 22 Wait 50 | . . 16 34 . Move 1243 | 39 80 788 315 21 Hop . | . . . . . Pick Up 40 | 9 5 10 16 . Fast Attach . | . . . . . Attach 21 | 3 5 3 9 1 Detach 2 | . 1 1 . . Swap 10 | . . 7 3 . Drop 18 | 1 . 7 10 . Fire 97 | . . 36 61 . Melee 4 | . . . 4 . Ram . | . . . . . Kick 6 | . . 4 2 . Crush . | . . . . . Escape Stasis . | . . . . . Rewire . | . . . . . Trap . | . . . . . Miscellaneous . | . . . . . Route ------- -11/Scrapyard -10/Materials -10/Mines (discovered 2 exits: [*Mat x2]) -9/Materials -9/Mines History --------- Turn | Location | Event 5 | -11/Scrapyard | Discovered new exit (range 16) 49 | -11/Scrapyard | Entered Materials 133 | -10/Materials | Discovered new exit (range 13) 156 | -10/Materials | Entered Mines 287 | -10/Mines | Joined a pair of Derelicts in attacking an 0b10 outpost 304 | -10/Mines | Build established: Mutant 418 | -10/Mines | Found a damaged Exp. Sensor Array with a note attached 420 | -10/Mines | Found Prototype Device 422 | -10/Mines | Identified Exp. Sensor Array 489 | -10/Mines | Learned Materials terminal intel 562 | -10/Mines | Discovered new exit (range 10) 662 | -10/Mines | Learned 4 Materials zone layouts 986 | -10/Mines | Discovered new exit (range 8) 1248 | -10/Mines | Entered Materials 1248 | -9/Materials | Evolved 2 slots: Utility x2 1249 | -9/Materials | Identified exit to Mines 1250 | -9/Materials | Loaded intel: 12 terminal locations 1844 | -9/Materials | Destroyed 7 combat bots 1849 | -9/Materials | Lost 4 parts (1p2u1w) 1993 | -9/Materials | Core integrity fell below 50% 1995 | -9/Materials | Entered Mines 1996 | -9/Mines | Assembled infested the area 2035 | -9/Mines | Core integrity fell below 20% 2036 | -9/Mines | Destroyed by D-53 Grenadier with Mini Grenade Launcher Last Messages --------------- 01948_ Acquired 68 matter. 01950_ K-01 Serf collects debris. 01957_ Sneak attack on O-16 Technician. 01957_ Destroyed Hover Unit. 01957_ Destroyed Datajack. 01957_ O-16 Technician destroyed. 01967_ K-01 Serf collects debris. 01983_ Aluminum Leg destroyed. 01989_ Critical hit (Burn: +37). LOCATION=MINES GOAL=ESCAPE Something is scanning the area. 01996_ ALERT: Infestation in the mines, dispatching Demolisher response squad. 01996_ K-01 Serf collects debris. 02025_ C-30 ARC bursts open, deploying its payload. 02025_ D-53 Grenadier unfolds itself. 02026_ Hvy. Assault Rifle destroyed. 02031_ Aluminum Leg destroyed. 02031_ K-01 Serf destroyed. 02034_ The unstable cave ceiling collapses. Map ----- +----------------------------------------------------+ | ?????????????????????????????????????????????????? | | ?????????????????????????????????????????????????? | | ?????????????????????????????????????????????????? | | ?????????????????????????????????????????????????? | | ?????????????????????????????????????????????????? | | ?????????????????????????????????????????????????? | | ?????????????????????? ?????????????????????????? | | ?????????????????????? ?????????????????????????? | | ?????????????????????? ???? ????????????????????? | | ?????????????????????? ??? ????????????????????? | | ????????????????????## ""? ????????????????????? | | ????????????????##### """ ?????????????????????? | | ???????????????## """ ?????????????????????? | | ???????????????? % ??????????????????????? | | ???????????????? ??????????????????????? | | ????????????????? ??????????????????????? | | ?????????????????? dd ??????????????????????? | | ?????????????????## ??????????????????????? | | ?????????????????# #??????????????????????? | | ?????????????????# #??????????????????????? | | ????????????????## ##?????????????????????? | | ????????????????# ##????????????????????? | | ????????????????## #????????????????????? | | ????????????????# #????????????????????? | | ????????????????## ###??????????????????? | | ?????????????????# @ #??????????????????? | | ?????????????????### # #??????????????????? | | ???????????????????# k # #??????????????????? | | ???????????????????## # # #??????????????????? | | ????????????????????# ### ### ###????????????????? | | ????????????????????# ##### #????????????????? | | ????????????????????# #????????????????? | | ????????????????????####### #????????????????? | | ??????????????????????????# #????????????????? | | ??????????????????????????# #????????????????? | | ??????????????????????????# #????????????????? | | ??????????????????????????#######????????????????? | | ?????????????????????????????????????????????????? | | ?????????????????????????????????????????????????? | | ?????????????????????????????????????????????????? | | ?????????????????????????????????????????????????? | | ?????????????????????????????????????????????????? | | ?????????????????????????????????????????????????? | | ?????????????????????????????????????????????????? | | ?????????????????????????????????????????????????? | | ?????????????????????????????????????????????????? | | ?????????????????????????????????????????????????? | | ?????????????????????????????????????????????????? | | ?????????????????????????????????????????????????? | | ?????????????????????????????????????????????????? | +----------------------------------------------------+ Best States ------------- Heat Dissipation 28 Energy Generation 18 Energy Capacity 250 Matter Stores 450 Matter Capacity 450 Sight Range 16 Terrain Scan Range 14 Terrain Scan Density 10 Armor Coverage 150 Propulsion Shielding 33 Evasion (%) 55 Item Schematics ----------------- None Robot Schematics ------------------ None Fabricated ------------ Nothing Alien Tech Used ----------------- None Achievements -------------- None Challenges ------------ None Game ------ Seed SupersonicTrackerWings Manual? 0 Play Time 00:18:57 Cumulative 40.9 hours Start 2022.09.05 @ 01:10:12 End 2022.09.05 @ 01:29:17 Sessions 1 Manual Loads 0 Difficulty Rogue Special Mode None Game No. 96 Rogue 96 Adventurer 0 Explorer 0 Win Type - Total 0 Types 0/0/0/0/0/0/0/0/0 Lore% 26 Gallery% 25 Achievement% 23 Wizard Run 0 Options --------- ASCII 0 Keyboard 0 Movement Numpad Keybinds 0 Fullscreen 1 Font 12/Smallcaps Map View 83x54 Tactical HUD 1 Map Filters NONE Filters NONE Steam 1 RUN: b8d8ad20-87c6-4c56-9970-4111491bfa4e